[Event "Titled Tuesday Blitz April 19 Early 2022"]
[White "Golubeva, Oksana"]
[Black "Ianov, Viktor"]
[WhiteFideId "4170164"]
[BlackFideId "14102730"]
[WhiteElo "2162"]
[BlackElo "2161"]
[Result "0-1"]
[Round "10"]
[TimeControl "180+1"]
[Date "2022.04.19"]
[WhiteClock "0:00:09"]
[BlackClock "0:00:55"]

1. Nf3 {[%clk 0:03:00]}  d6 {[%clk 0:02:59]} 2. d4 {[%clk 0:02:58]}  g6 {[%clk 0:02:59]} 3. e3 {[%clk 0:02:55]}  Bg7 {[%clk 0:02:59]} 4. b3 {[%clk 0:02:56]}  Nf6 {[%clk 0:02:59]} 5. Bb2 {[%clk 0:02:56]}  O-O {[%clk 0:02:59]} 6. Nbd2 {[%clk 0:02:57]}  c5 {[%clk 0:03:00]} 7. Bc4 {[%clk 0:02:54]}  cxd4 {[%clk 0:02:59]} 8. Nxd4 {[%clk 0:02:53]}  Nc6 {[%clk 0:02:58]} 9. O-O {[%clk 0:02:52]}  Bd7 {[%clk 0:02:58]} 10. a4 {[%clk 0:02:51]}  d5 {[%clk 0:02:56]} 11. Be2 {[%clk 0:02:51]}  Rc8 {[%clk 0:02:54]} 12. Nxc6 {[%clk 0:02:49]}  Bxc6 {[%clk 0:02:52]} 13. Nf3 {[%clk 0:02:48]}  a6 {[%clk 0:02:38]} 14. Be5 {[%clk 0:02:47]}  Qb6 {[%clk 0:02:31]} 15. Qd4 {[%clk 0:02:40]}  Qxd4 {[%clk 0:02:30]} 16. Nxd4 {[%clk 0:02:41]}  Ne4 {[%clk 0:02:29]} 17. Bxg7 {[%clk 0:02:36]}  Kxg7 {[%clk 0:02:29]} 18. Bd3 {[%clk 0:02:34]}  Nc3 {[%clk 0:02:28]} 19. f4 {[%clk 0:02:28]}  e6 {[%clk 0:02:24]} 20. g4 {[%clk 0:02:27]}  Rfe8 {[%clk 0:02:23]} 21. Nf3 {[%clk 0:02:21]}  f6 {[%clk 0:02:16]} 22. g5 {[%clk 0:01:56]}  fxg5 {[%clk 0:02:08]} 23. Nxg5 {[%clk 0:01:57]}  Re7 {[%clk 0:02:04]} 24. Nf3 {[%clk 0:01:55]}  Be8 {[%clk 0:01:56]} 25. Ne5 {[%clk 0:01:54]}  a5 {[%clk 0:01:49]} 26. h4 {[%clk 0:01:51]}  Rec7 {[%clk 0:01:46]} 27. Rf2 {[%clk 0:01:42]}  b6 {[%clk 0:01:43]} 28. Kh2 {[%clk 0:01:40]}  Re7 {[%clk 0:01:35]} 29. Rg1 {[%clk 0:01:39]}  b5 {[%clk 0:01:32]} 30. axb5 {[%clk 0:01:34]}  Bxb5 {[%clk 0:01:32]} 31. Bxg6 {[%clk 0:01:28]}  hxg6 {[%clk 0:01:30]} 32. Rxg6+ {[%clk 0:01:27]}  Kh7 {[%clk 0:01:29]} 33. Rfg2 {[%clk 0:01:21]}  Ne4 {[%clk 0:01:28]} 34. h5 {[%clk 0:01:04]}  Be8 {[%clk 0:01:20]} 35. Rg8 {[%clk 0:01:00]}  Rxc2 {[%clk 0:01:15]} 36. Rxc2 {[%clk 0:00:40]}  Kxg8 {[%clk 0:01:14]} 37. Ra2 {[%clk 0:00:34]}  Ra7 {[%clk 0:01:12]} 38. Rg2+ {[%clk 0:00:25]}  Kh7 {[%clk 0:01:11]} 39. Ng6 {[%clk 0:00:25]}  Bxg6 {[%clk 0:01:07]} 40. Rxg6 {[%clk 0:00:26]}  Re7 {[%clk 0:01:05]} 41. Kh3 {[%clk 0:00:24]}  Nc5 {[%clk 0:01:05]} 42. Kg4 {[%clk 0:00:22]}  Nxb3 {[%clk 0:01:04]} 43. f5 {[%clk 0:00:20]}  exf5+ {[%clk 0:01:03]} 44. Kxf5 {[%clk 0:00:20]}  Ra7 {[%clk 0:01:02]} 45. Ke5 {[%clk 0:00:12]}  a4 {[%clk 0:01:02]} 46. Rg2 {[%clk 0:00:13]}  a3 {[%clk 0:01:01]} 47. Ra2 {[%clk 0:00:13]}  Nc1 {[%clk 0:01:00]} 48. Ra1 {[%clk 0:00:13]}  a2 {[%clk 0:01:00]} 49. Rxc1 {[%clk 0:00:12]}  a1=Q+ {[%clk 0:00:59]} 50. Rxa1 {[%clk 0:00:12]}  Rxa1 {[%clk 0:00:59]} 51. Kxd5 {[%clk 0:00:13]}  Ra5+ {[%clk 0:00:56]} 52. Ke6 {[%clk 0:00:11]}  Rxh5 {[%clk 0:00:55]} 53. e4 {[%clk 0:00:11]}  Kg8 {[%clk 0:00:56]} 54. e5 {[%clk 0:00:08]}  Kf8 {[%clk 0:00:56]} 55. Kf6 {[%clk 0:00:09]}  Ke8 {[%clk 0:00:55]} 56. Ke6 {[%clk 0:00:09]}  Rh6+ {[%clk 0:00:55]} 57. Kd5 {[%clk 0:00:09]}  Ke7 {[%clk 0:00:55]} 0-1


[Site "https://www.chess.com"]

[Event "Titled Tuesday Blitz April 19 Early 2022"]
[White "Dronavalli, Harika"]
[Black "Derraugh, Geordie"]
[WhiteFideId "5015197"]
[BlackFideId "2603950"]
[WhiteElo "2382"]
[BlackElo "2116"]
[Result "1-0"]
[Round "10"]
[TimeControl "180+1"]
[Date "2022.04.19"]
[WhiteClock "0:00:31"]
[BlackClock "0:00:24"]

1. d4 {[%clk 0:03:00]}  Nf6 {[%clk 0:02:59]} 2. c4 {[%clk 0:03:00]}  g6 {[%clk 0:02:55]} 3. g3 {[%clk 0:02:58]}  c6 {[%clk 0:02:52]} 4. Bg2 {[%clk 0:02:58]}  d5 {[%clk 0:02:51]} 5. Nf3 {[%clk 0:02:55]}  Bg7 {[%clk 0:02:50]} 6. O-O {[%clk 0:02:55]}  dxc4 {[%clk 0:02:49]} 7. Ne5 {[%clk 0:02:55]}  O-O {[%clk 0:02:49]} 8. Nxc4 {[%clk 0:02:55]}  Nd5 {[%clk 0:02:48]} 9. Nc3 {[%clk 0:02:39]}  Nb6 {[%clk 0:02:46]} 10. Ne5 {[%clk 0:02:34]}  Be6 {[%clk 0:02:43]} 11. f4 {[%clk 0:02:20]}  f6 {[%clk 0:02:23]} 12. Nf3 {[%clk 0:02:19]}  a5 {[%clk 0:02:18]} 13. e4 {[%clk 0:02:17]}  Bc4 {[%clk 0:02:17]} 14. Rf2 {[%clk 0:02:16]}  e5 {[%clk 0:02:14]} 15. dxe5 {[%clk 0:02:10]}  fxe5 {[%clk 0:02:14]} 16. Qxd8 {[%clk 0:02:01]}  Rxd8 {[%clk 0:02:14]} 17. Nxe5 {[%clk 0:02:02]}  Bxe5 {[%clk 0:02:13]} 18. fxe5 {[%clk 0:02:02]}  N8d7 {[%clk 0:02:13]} 19. b3 {[%clk 0:01:52]}  Bf7 {[%clk 0:02:07]} 20. Be3 {[%clk 0:01:42]}  Nc8 {[%clk 0:02:02]} 21. Bf4 {[%clk 0:01:33]}  Nc5 {[%clk 0:01:53]} 22. Raf1 {[%clk 0:01:23]}  Be6 {[%clk 0:01:45]} 23. Bg5 {[%clk 0:01:18]}  Re8 {[%clk 0:01:45]} 24. Rd2 {[%clk 0:01:07]}  a4 {[%clk 0:01:37]} 25. b4 {[%clk 0:01:00]}  Nd7 {[%clk 0:01:37]} 26. Bf6 {[%clk 0:00:51]}  Ncb6 {[%clk 0:01:37]} 27. Rfd1 {[%clk 0:00:49]}  a3 {[%clk 0:01:06]} 28. h3 {[%clk 0:00:48]}  Kf7 {[%clk 0:01:02]} 29. g4 {[%clk 0:00:47]}  Nxf6 {[%clk 0:01:02]} 30. Rf2 {[%clk 0:00:42]}  Nd7 {[%clk 0:00:52]} 31. exf6 {[%clk 0:00:43]}  Ne5 {[%clk 0:00:52]} 32. g5 {[%clk 0:00:40]}  Nc4 {[%clk 0:00:32]} 33. Bf1 {[%clk 0:00:33]}  Rad8 {[%clk 0:00:25]} 34. Bxc4 {[%clk 0:00:32]}  Rd4 {[%clk 0:00:24]} 35. Rxd4 {[%clk 0:00:31]} 1-0


[Site "https://www.chess.com"]

[Event "Titled Tuesday Blitz April 19 Early 2022"]
[White "Hua, Lefong"]
[Black "Pacheco Lugo, Alejandro Jose"]
[WhiteFideId "2602253"]
[BlackFideId "3903745"]
[WhiteElo "2599"]
[BlackElo "2146"]
[Result "1/2-1/2"]
[Round "10"]
[TimeControl "180+1"]
[Date "2022.04.19"]
[WhiteClock "0:01:03"]
[BlackClock "0:00:27"]

1. d4 {[%clk 0:03:00]}  Nf6 {[%clk 0:02:58]} 2. c4 {[%clk 0:03:01]}  e6 {[%clk 0:02:58]} 3. Nc3 {[%clk 0:03:01]}  Bb4 {[%clk 0:02:58]} 4. f3 {[%clk 0:03:02]}  c5 {[%clk 0:02:58]} 5. d5 {[%clk 0:03:02]}  b5 {[%clk 0:02:58]} 6. e4 {[%clk 0:03:01]}  bxc4 {[%clk 0:02:58]} 7. Bxc4 {[%clk 0:03:00]}  Ba6 {[%clk 0:02:58]} 8. Bxa6 {[%clk 0:02:59]}  Nxa6 {[%clk 0:02:59]} 9. Ne2 {[%clk 0:02:57]}  O-O {[%clk 0:02:58]} 10. O-O {[%clk 0:02:57]}  c4 {[%clk 0:02:56]} 11. Be3 {[%clk 0:02:53]}  Bc5 {[%clk 0:02:51]} 12. Bxc5 {[%clk 0:02:48]}  Nxc5 {[%clk 0:02:52]} 13. Qd4 {[%clk 0:02:47]}  Rc8 {[%clk 0:02:52]} 14. Rad1 {[%clk 0:02:39]}  exd5 {[%clk 0:02:26]} 15. Nxd5 {[%clk 0:02:25]}  Nxd5 {[%clk 0:02:24]} 16. Qxd5 {[%clk 0:02:25]}  Qb6 {[%clk 0:02:21]} 17. Qd4 {[%clk 0:02:22]}  Rfd8 {[%clk 0:02:03]} 18. Rd2 {[%clk 0:02:15]}  Nd3 {[%clk 0:01:23]} 19. Qxb6 {[%clk 0:02:10]}  axb6 {[%clk 0:01:24]} 20. Nc1 {[%clk 0:02:05]}  d5 {[%clk 0:01:05]} 21. exd5 {[%clk 0:01:43]}  Rxd5 {[%clk 0:00:55]} 22. Rfd1 {[%clk 0:01:42]}  Rcd8 {[%clk 0:00:55]} 23. b3 {[%clk 0:01:24]}  b5 {[%clk 0:00:55]} 24. bxc4 {[%clk 0:01:24]}  bxc4 {[%clk 0:00:56]} 25. Nxd3 {[%clk 0:01:24]}  cxd3 {[%clk 0:00:56]} 26. Kf2 {[%clk 0:01:24]}  f5 {[%clk 0:00:50]} 27. f4 {[%clk 0:01:23]}  Kf7 {[%clk 0:00:47]} 28. Ke3 {[%clk 0:01:18]}  Re8+ {[%clk 0:00:47]} 29. Kf3 {[%clk 0:01:18]}  Red8 {[%clk 0:00:48]} 30. Rb1 {[%clk 0:01:17]}  R8d7 {[%clk 0:00:46]} 31. Rb3 {[%clk 0:01:14]}  h6 {[%clk 0:00:43]} 32. h4 {[%clk 0:01:14]}  Kg6 {[%clk 0:00:42]} 33. g3 {[%clk 0:01:11]}  Kh5 {[%clk 0:00:42]} 34. Ra3 {[%clk 0:01:11]}  g5 {[%clk 0:00:40]} 35. hxg5 {[%clk 0:01:09]}  hxg5 {[%clk 0:00:41]} 36. fxg5 {[%clk 0:01:07]}  Kxg5 {[%clk 0:00:41]} 37. Rb3 {[%clk 0:01:04]}  R7d6 {[%clk 0:00:32]} 38. a4 {[%clk 0:01:03]}  Ra6 {[%clk 0:00:27]} 39. Ra3 {[%clk 0:01:00]}  Rd4 {[%clk 0:00:27]} 40. Rdxd3 {[%clk 0:00:59]}  Rxd3+ {[%clk 0:00:26]} 41. Rxd3 {[%clk 0:01:00]}  Rxa4 {[%clk 0:00:26]} 42. Rd8 {[%clk 0:01:01]}  Ra3+ {[%clk 0:00:26]} 43. Kf2 {[%clk 0:01:01]}  Ra2+ {[%clk 0:00:26]} 44. Kf3 {[%clk 0:01:02]}  Ra3+ {[%clk 0:00:26]} 45. Kf2 {[%clk 0:01:03]}  Ra2+ {[%clk 0:00:26]} 46. Kf3 {[%clk 0:01:03]}  Ra3+ {[%clk 0:00:27]} 1/2-1/2


[Site "https://www.chess.com"]

[Event "Titled Tuesday Blitz April 19 Early 2022"]
[White "Jaracz, Pawel"]
[Black "Sjugirov, Sanan"]
[WhiteFideId "1102222"]
[BlackFideId "4189302"]
[WhiteElo "2429"]
[BlackElo "2602"]
[Result "0-1"]
[Round "10"]
[TimeControl "180+1"]
[Date "2022.04.19"]
[WhiteClock "0:00:01"]
[BlackClock "0:00:05"]

1. e4 {[%clk 0:03:00]}  c6 {[%clk 0:02:54]} 2. d4 {[%clk 0:03:00]}  d5 {[%clk 0:02:55]} 3. e5 {[%clk 0:02:55]}  Bf5 {[%clk 0:02:54]} 4. Nd2 {[%clk 0:02:52]}  e6 {[%clk 0:02:54]} 5. Nb3 {[%clk 0:02:53]}  a6 {[%clk 0:02:52]} 6. Nf3 {[%clk 0:02:52]}  Nd7 {[%clk 0:02:52]} 7. Be2 {[%clk 0:02:49]}  c5 {[%clk 0:02:50]} 8. O-O {[%clk 0:02:38]}  Rc8 {[%clk 0:02:47]} 9. dxc5 {[%clk 0:02:36]}  Bxc5 {[%clk 0:02:47]} 10. Nxc5 {[%clk 0:02:35]}  Nxc5 {[%clk 0:02:47]} 11. a4 {[%clk 0:02:32]}  Ne7 {[%clk 0:02:43]} 12. Nd4 {[%clk 0:02:30]}  Bg6 {[%clk 0:02:41]} 13. h3 {[%clk 0:02:30]}  O-O {[%clk 0:02:41]} 14. Bf4 {[%clk 0:02:29]}  Qb6 {[%clk 0:02:29]} 15. Qc1 {[%clk 0:02:18]}  Nc6 {[%clk 0:02:19]} 16. Be3 {[%clk 0:02:13]}  Nxe5 {[%clk 0:02:02]} 17. f4 {[%clk 0:02:09]}  Nc4 {[%clk 0:01:59]} 18. Bxc4 {[%clk 0:02:09]}  dxc4 {[%clk 0:02:00]} 19. f5 {[%clk 0:02:05]}  exf5 {[%clk 0:01:54]} 20. Nxf5 {[%clk 0:02:05]}  Qe6 {[%clk 0:01:44]} 21. Bxc5 {[%clk 0:01:53]}  Rxc5 {[%clk 0:01:44]} 22. Nd4 {[%clk 0:01:53]}  Qe7 {[%clk 0:01:22]} 23. c3 {[%clk 0:01:53]}  Re5 {[%clk 0:01:20]} 24. Qf4 {[%clk 0:01:46]}  Re8 {[%clk 0:01:20]} 25. Kh2 {[%clk 0:01:25]}  h6 {[%clk 0:01:20]} 26. Rf3 {[%clk 0:01:12]}  Re4 {[%clk 0:01:19]} 27. Qg3 {[%clk 0:01:12]}  h5 {[%clk 0:01:14]} 28. Raf1 {[%clk 0:01:04]}  h4 {[%clk 0:01:14]} 29. Qf2 {[%clk 0:01:04]}  b5 {[%clk 0:00:59]} 30. axb5 {[%clk 0:01:03]}  axb5 {[%clk 0:01:00]} 31. Rf4 {[%clk 0:00:58]}  b4 {[%clk 0:00:55]} 32. Nc6 {[%clk 0:00:34]}  Qd6 {[%clk 0:00:40]} 33. Nxb4 {[%clk 0:00:32]}  Re2 {[%clk 0:00:36]} 34. Qxh4 {[%clk 0:00:31]}  Rxb2 {[%clk 0:00:35]} 35. Qg3 {[%clk 0:00:31]}  Ree2 {[%clk 0:00:21]} 36. R1f2 {[%clk 0:00:26]}  Qe5 {[%clk 0:00:07]} 37. Nc6 {[%clk 0:00:19]}  Qd6 {[%clk 0:00:02]} 38. Nd4 {[%clk 0:00:18]}  Rxf2 {[%clk 0:00:02]} 39. Rxf2 {[%clk 0:00:18]}  Qxg3+ {[%clk 0:00:03]} 40. Kxg3 {[%clk 0:00:18]}  Rb1 {[%clk 0:00:04]} 41. Ra2 {[%clk 0:00:06]}  Rc1 {[%clk 0:00:04]} 42. Ra3 {[%clk 0:00:07]}  Bd3 {[%clk 0:00:03]} 43. Kf4 {[%clk 0:00:07]}  f6 {[%clk 0:00:03]} 44. g4 {[%clk 0:00:07]}  Rf1+ {[%clk 0:00:02]} 45. Kg3 {[%clk 0:00:07]}  Kf7 {[%clk 0:00:03]} 46. h4 {[%clk 0:00:07]}  Rg1+ {[%clk 0:00:03]} 47. Kf4 {[%clk 0:00:07]}  Rf1+ {[%clk 0:00:04]} 48. Ke3 {[%clk 0:00:06]}  g5 {[%clk 0:00:03]} 49. Ra7+ {[%clk 0:00:06]}  Ke8 {[%clk 0:00:02]} 50. h5 {[%clk 0:00:06]}  Rf4 {[%clk 0:00:02]} 51. h6 {[%clk 0:00:05]}  Rxg4 {[%clk 0:00:02]} 52. Ne6 {[%clk 0:00:05]}  Re4+ {[%clk 0:00:02]} 53. Kf3 {[%clk 0:00:03]}  Rxe6 {[%clk 0:00:02]} 54. h7 {[%clk 0:00:04]}  Bxh7 {[%clk 0:00:03]} 55. Rxh7 {[%clk 0:00:04]}  Re5 {[%clk 0:00:03]} 56. Rc7 {[%clk 0:00:04]}  Rf5+ {[%clk 0:00:03]} 57. Ke4 {[%clk 0:00:03]}  Rf4+ {[%clk 0:00:04]} 58. Kd5 {[%clk 0:00:03]}  g4 {[%clk 0:00:04]} 59. Ke6 {[%clk 0:00:04]}  Kf8 {[%clk 0:00:05]} 60. Rc5 {[%clk 0:00:01]}  Kg7 {[%clk 0:00:05]} 0-1


[Site "https://www.chess.com"]

[Event "Titled Tuesday Blitz April 19 Early 2022"]
[White "Jegorovas, Aleksandras"]
[Black "Brodowski, Piotr"]
[WhiteFideId "12801950"]
[BlackFideId "1124480"]
[WhiteElo "2247"]
[BlackElo "2422"]
[Result "1-0"]
[Round "10"]
[TimeControl "180+1"]
[Date "2022.04.19"]
[WhiteClock "0:01:04"]
[BlackClock "0:01:24"]

1. Nf3 {[%clk 0:02:58]}  f5 {[%clk 0:02:55]} 2. g3 {[%clk 0:02:56]}  Nf6 {[%clk 0:02:55]} 3. Bg2 {[%clk 0:02:53]}  Nc6 {[%clk 0:02:55]} 4. d4 {[%clk 0:02:52]}  h6 {[%clk 0:02:54]} 5. d5 {[%clk 0:02:49]}  Nb4 {[%clk 0:02:53]} 6. c4 {[%clk 0:02:40]}  a5 {[%clk 0:02:53]} 7. Nh4 {[%clk 0:02:35]}  b5 {[%clk 0:02:25]} 8. cxb5 {[%clk 0:02:27]}  Bb7 {[%clk 0:02:24]} 9. Nc3 {[%clk 0:02:19]}  e6 {[%clk 0:02:23]} 10. e4 {[%clk 0:02:04]}  Bc5 {[%clk 0:02:20]} 11. e5 {[%clk 0:01:54]}  g5 {[%clk 0:02:17]} 12. exf6 {[%clk 0:01:51]}  Qxf6 {[%clk 0:02:09]} 13. Nf3 {[%clk 0:01:48]}  g4 {[%clk 0:01:54]} 14. Nh4 {[%clk 0:01:40]}  Qe5+ {[%clk 0:01:55]} 15. Kf1 {[%clk 0:01:27]}  O-O-O {[%clk 0:01:49]} 16. Bf4 {[%clk 0:01:26]}  Qf6 {[%clk 0:01:49]} 17. a3 {[%clk 0:01:18]}  Nxd5 {[%clk 0:01:44]} 18. Nxd5 {[%clk 0:01:18]}  Qxb2 {[%clk 0:01:43]} 19. Be3 {[%clk 0:01:09]}  Bxd5 {[%clk 0:01:26]} 20. Bxd5 {[%clk 0:01:08]}  exd5 {[%clk 0:01:24]} 21. Bxc5 {[%clk 0:01:06]}  Qxb5+ {[%clk 0:01:24]} 22. Qe2 {[%clk 0:01:04]} 1-0


[Site "https://www.chess.com"]

[Event "Titled Tuesday Blitz April 19 Early 2022"]
[White "Kadam, Om Manish"]
[Black "Kaasen, Tor Fredrik"]
[WhiteFideId "45076294"]
[BlackFideId "1516647"]
[WhiteElo "1729"]
[BlackElo "2335"]
[Result "0-1"]
[Round "10"]
[TimeControl "180+1"]
[Date "2022.04.19"]
[WhiteClock "0:01:49"]
[BlackClock "0:01:46"]

1. e4 {[%clk 0:03:00]}  e5 {[%clk 0:02:59]} 2. Nf3 {[%clk 0:03:00]}  Nc6 {[%clk 0:03:00]} 3. Bc4 {[%clk 0:03:00]}  Nf6 {[%clk 0:03:00]} 4. d3 {[%clk 0:03:00]}  Bc5 {[%clk 0:02:59]} 5. c3 {[%clk 0:03:00]}  d6 {[%clk 0:02:58]} 6. b4 {[%clk 0:03:00]}  Bb6 {[%clk 0:02:58]} 7. a4 {[%clk 0:03:01]}  a5 {[%clk 0:02:59]} 8. b5 {[%clk 0:03:02]}  Ne7 {[%clk 0:03:00]} 9. Nbd2 {[%clk 0:03:02]}  O-O {[%clk 0:02:59]} 10. O-O {[%clk 0:03:01]}  c6 {[%clk 0:02:58]} 11. Bb3 {[%clk 0:03:01]}  Ng6 {[%clk 0:02:56]} 12. Nc4 {[%clk 0:03:00]}  Bc7 {[%clk 0:02:55]} 13. Re1 {[%clk 0:02:59]}  Re8 {[%clk 0:02:53]} 14. Ba3 {[%clk 0:02:57]}  d5 {[%clk 0:02:49]} 15. exd5 {[%clk 0:02:57]}  cxd5 {[%clk 0:02:50]} 16. Ne3 {[%clk 0:02:58]}  h6 {[%clk 0:02:33]} 17. g3 {[%clk 0:02:55]}  Bh3 {[%clk 0:02:30]} 18. d4 {[%clk 0:02:54]}  e4 {[%clk 0:02:30]} 19. Nd2 {[%clk 0:02:54]}  h5 {[%clk 0:02:14]} 20. Nxd5 {[%clk 0:02:40]}  Nxd5 {[%clk 0:02:14]} 21. Qxh5 {[%clk 0:02:40]}  Be6 {[%clk 0:02:04]} 22. Nxe4 {[%clk 0:02:39]}  Ndf4 {[%clk 0:01:57]} 23. gxf4 {[%clk 0:02:39]}  Nxf4 {[%clk 0:01:54]} 24. Qd1 {[%clk 0:02:35]}  Bxb3 {[%clk 0:01:52]} 25. Qxb3 {[%clk 0:02:36]}  Qh4 {[%clk 0:01:52]} 26. Ng3 {[%clk 0:02:27]}  Qh3 {[%clk 0:01:47]} 27. Qc4 {[%clk 0:01:49]}  Qg2# {[%clk 0:01:46]} 0-1


[Site "https://www.chess.com"]

[Event "Titled Tuesday Blitz April 19 Early 2022"]
[White "Kamsky, Gata"]
[Black "Wagner, Dennis"]
[WhiteFideId "2000024"]
[BlackFideId "24650684"]
[WhiteElo "2645"]
[BlackElo "2355"]
[Result "0-1"]
[Round "10"]
[TimeControl "180+1"]
[Date "2022.04.19"]
[WhiteClock "0:00:08"]
[BlackClock "0:00:34"]

1. e4 {[%clk 0:01:04]}  e5 {[%clk 0:02:56]} 2. Nf3 {[%clk 0:01:04]}  Nc6 {[%clk 0:02:55]} 3. Bb5 {[%clk 0:01:04]}  a6 {[%clk 0:02:55]} 4. Ba4 {[%clk 0:01:04]}  Nf6 {[%clk 0:02:55]} 5. O-O {[%clk 0:01:04]}  Be7 {[%clk 0:02:55]} 6. Re1 {[%clk 0:01:05]}  b5 {[%clk 0:02:55]} 7. Bb3 {[%clk 0:01:04]}  O-O {[%clk 0:02:56]} 8. c3 {[%clk 0:01:05]}  d5 {[%clk 0:02:56]} 9. d4 {[%clk 0:01:04]}  exd4 {[%clk 0:02:48]} 10. e5 {[%clk 0:01:01]}  Ne4 {[%clk 0:02:48]} 11. cxd4 {[%clk 0:01:00]}  Bf5 {[%clk 0:02:37]} 12. Nc3 {[%clk 0:00:57]}  Nxc3 {[%clk 0:02:36]} 13. bxc3 {[%clk 0:00:57]}  Na5 {[%clk 0:02:35]} 14. Bc2 {[%clk 0:00:56]}  Bxc2 {[%clk 0:02:30]} 15. Qxc2 {[%clk 0:00:56]}  Nc4 {[%clk 0:02:31]} 16. a4 {[%clk 0:00:54]}  c6 {[%clk 0:02:31]} 17. g3 {[%clk 0:00:51]}  a5 {[%clk 0:02:25]} 18. h4 {[%clk 0:00:48]}  bxa4 {[%clk 0:02:09]} 19. Rxa4 {[%clk 0:00:44]}  Nb6 {[%clk 0:02:04]} 20. Ra2 {[%clk 0:00:44]}  a4 {[%clk 0:02:05]} 21. Bg5 {[%clk 0:00:42]}  h6 {[%clk 0:02:05]} 22. Bxe7 {[%clk 0:00:40]}  Qxe7 {[%clk 0:02:06]} 23. e6 {[%clk 0:00:25]}  fxe6 {[%clk 0:01:55]} 24. Ne5 {[%clk 0:00:24]}  Qc7 {[%clk 0:01:46]} 25. Rb1 {[%clk 0:00:20]}  c5 {[%clk 0:01:39]} 26. Qb2 {[%clk 0:00:17]}  cxd4 {[%clk 0:01:33]} 27. cxd4 {[%clk 0:00:16]}  Nc4 {[%clk 0:01:31]} 28. Nxc4 {[%clk 0:00:16]}  Qxc4 {[%clk 0:01:25]} 29. Ra3 {[%clk 0:00:15]}  Rfb8 {[%clk 0:01:17]} 30. Qxb8+ {[%clk 0:00:14]}  Rxb8 {[%clk 0:01:18]} 31. Rxb8+ {[%clk 0:00:13]}  Kh7 {[%clk 0:01:18]} 32. Kg2 {[%clk 0:00:13]}  Qxd4 {[%clk 0:01:17]} 33. Ra8 {[%clk 0:00:13]}  Qe4+ {[%clk 0:01:15]} 34. Kg1 {[%clk 0:00:13]}  Qb1+ {[%clk 0:01:08]} 35. Kg2 {[%clk 0:00:12]}  d4 {[%clk 0:01:01]} 36. R8xa4 {[%clk 0:00:11]}  e5 {[%clk 0:01:01]} 37. Ra7 {[%clk 0:00:10]}  Qe4+ {[%clk 0:01:00]} 38. Kg1 {[%clk 0:00:10]}  d3 {[%clk 0:00:58]} 39. Rd7 {[%clk 0:00:09]}  Qe1+ {[%clk 0:00:50]} 40. Kg2 {[%clk 0:00:09]}  e4 {[%clk 0:00:46]} 41. Ra4 {[%clk 0:00:08]}  Qe2 {[%clk 0:00:42]} 42. Kg1 {[%clk 0:00:08]}  Qd1+ {[%clk 0:00:34]} 0-1


[Site "https://www.chess.com"]

[Event "Titled Tuesday Blitz April 19 Early 2022"]
[White "Karavaeva, Olga"]
[Black "Sliwicki, Damian"]
[WhiteFideId "4124111"]
[BlackFideId "1127128"]
[WhiteElo "2105"]
[BlackElo "2084"]
[Result "0-1"]
[Round "10"]
[TimeControl "180+1"]
[Date "2022.04.19"]
[WhiteClock "0:01:49"]
[BlackClock "0:00:49"]

1. c4 {[%clk 0:03:00]}  Nf6 {[%clk 0:02:59]} 2. Nc3 {[%clk 0:03:00]}  e6 {[%clk 0:02:59]} 3. e4 {[%clk 0:03:00]}  c5 {[%clk 0:02:58]} 4. e5 {[%clk 0:02:59]}  Ng8 {[%clk 0:02:54]} 5. f4 {[%clk 0:02:59]}  d5 {[%clk 0:02:53]} 6. cxd5 {[%clk 0:02:59]}  exd5 {[%clk 0:02:49]} 7. d4 {[%clk 0:02:59]}  Nc6 {[%clk 0:02:41]} 8. Nf3 {[%clk 0:02:56]}  Bg4 {[%clk 0:01:59]} 9. Bb5 {[%clk 0:02:51]}  cxd4 {[%clk 0:01:33]} 10. Qxd4 {[%clk 0:02:51]}  Bxf3 {[%clk 0:01:31]} 11. gxf3 {[%clk 0:02:51]}  Qh4+ {[%clk 0:01:20]} 12. Qf2 {[%clk 0:02:31]}  Qxf2+ {[%clk 0:01:16]} 13. Kxf2 {[%clk 0:02:32]}  Bc5+ {[%clk 0:01:15]} 14. Kg3 {[%clk 0:02:28]}  Ne7 {[%clk 0:01:13]} 15. Rd1 {[%clk 0:02:25]}  O-O-O {[%clk 0:01:10]} 16. Bd3 {[%clk 0:02:12]}  h5 {[%clk 0:01:08]} 17. a3 {[%clk 0:02:08]}  h4+ {[%clk 0:01:07]} 18. Kh3 {[%clk 0:02:04]}  Nd4 {[%clk 0:01:04]} 19. Rf1 {[%clk 0:01:59]}  Ng6 {[%clk 0:00:52]} 20. b4 {[%clk 0:01:53]}  Bb6 {[%clk 0:00:49]} 21. Bb2 {[%clk 0:01:49]}  Nxf4+ {[%clk 0:00:48]} 22. Kg4 {[%clk 0:01:49]}  Nxd3 {[%clk 0:00:49]} 0-1


[Site "https://www.chess.com"]

[Event "Titled Tuesday Blitz April 19 Early 2022"]
[White "Karolczuk, Iwo"]
[Black "Omelja, Artem"]
[WhiteFideId "21816972"]
[BlackFideId "14119846"]
[WhiteElo "2277"]
[BlackElo "2382"]
[Result "1-0"]
[Round "10"]
[TimeControl "180+1"]
[Date "2022.04.19"]
[WhiteClock "0:00:07"]
[BlackClock "0:00:04"]

1. e4 {[%clk 0:02:59]}  c5 {[%clk 0:03:00]} 2. Nf3 {[%clk 0:02:57]}  e6 {[%clk 0:02:59]} 3. d4 {[%clk 0:02:55]}  cxd4 {[%clk 0:03:00]} 4. Nxd4 {[%clk 0:02:56]}  Nf6 {[%clk 0:03:01]} 5. Nc3 {[%clk 0:02:56]}  Nc6 {[%clk 0:02:54]} 6. a3 {[%clk 0:02:49]}  Bc5 {[%clk 0:02:48]} 7. Nb3 {[%clk 0:02:45]}  Be7 {[%clk 0:02:45]} 8. Bd3 {[%clk 0:02:29]}  O-O {[%clk 0:02:40]} 9. O-O {[%clk 0:02:29]}  b6 {[%clk 0:02:38]} 10. f4 {[%clk 0:02:28]}  d6 {[%clk 0:02:38]} 11. Bd2 {[%clk 0:02:26]}  Bb7 {[%clk 0:02:37]} 12. Qe2 {[%clk 0:02:26]}  Rc8 {[%clk 0:02:25]} 13. Rf3 {[%clk 0:02:13]}  e5 {[%clk 0:02:08]} 14. Rh3 {[%clk 0:02:08]}  Qd7 {[%clk 0:01:57]} 15. Rf1 {[%clk 0:02:01]}  Rfd8 {[%clk 0:01:39]} 16. Nd5 {[%clk 0:02:01]}  h6 {[%clk 0:01:29]} 17. Nxe7+ {[%clk 0:01:00]}  Qxe7 {[%clk 0:01:26]} 18. fxe5 {[%clk 0:01:00]}  Nxe5 {[%clk 0:01:18]} 19. Nd4 {[%clk 0:00:59]}  Nxd3 {[%clk 0:00:47]} 20. cxd3 {[%clk 0:00:56]}  d5 {[%clk 0:00:38]} 21. Nf5 {[%clk 0:00:54]}  Qe5 {[%clk 0:00:27]} 22. Bxh6 {[%clk 0:00:28]}  gxh6 {[%clk 0:00:22]} 23. Nxh6+ {[%clk 0:00:27]}  Kf8 {[%clk 0:00:19]} 24. Rhf3 {[%clk 0:00:18]}  Rd6 {[%clk 0:00:17]} 25. Ng4 {[%clk 0:00:18]}  Qd4+ {[%clk 0:00:05]} 26. Kh1 {[%clk 0:00:18]}  dxe4 {[%clk 0:00:05]} 27. Rh3 {[%clk 0:00:13]}  Ke8 {[%clk 0:00:01]} 28. Nh6 {[%clk 0:00:07]}  Ke7 {[%clk 0:00:01]} 29. Nf5+ {[%clk 0:00:07]}  Kd7 {[%clk 0:00:02]} 30. Nxd4 {[%clk 0:00:08]}  Rxd4 {[%clk 0:00:02]} 31. dxe4 {[%clk 0:00:08]}  Rxe4 {[%clk 0:00:02]} 32. Qd3+ {[%clk 0:00:08]}  Ke7 {[%clk 0:00:02]} 33. Rhf3 {[%clk 0:00:08]}  Rd8 {[%clk 0:00:02]} 34. Qc3 {[%clk 0:00:08]}  Ng4 {[%clk 0:00:01]} 35. Rxf7+ {[%clk 0:00:08]}  Ke6 {[%clk 0:00:02]} 36. R7f6+ {[%clk 0:00:06]}  Nxf6 {[%clk 0:00:02]} 37. Qxf6+ {[%clk 0:00:07]}  Kd5 {[%clk 0:00:02]} 38. Rd1+ {[%clk 0:00:07]}  Kc4 {[%clk 0:00:03]} 39. Qc3+ {[%clk 0:00:07]}  Kb5 {[%clk 0:00:03]} 40. Rxd8 {[%clk 0:00:07]}  Rf4 {[%clk 0:00:03]} 41. a4+ {[%clk 0:00:07]}  Rxa4 {[%clk 0:00:03]} 42. Rd1 {[%clk 0:00:07]}  Ka6 {[%clk 0:00:03]} 43. h3 {[%clk 0:00:06]}  b5 {[%clk 0:00:03]} 44. b3 {[%clk 0:00:06]}  Ra2 {[%clk 0:00:01]} 45. Rd6+ {[%clk 0:00:06]}  Bc6 {[%clk 0:00:01]} 46. Rxc6+ {[%clk 0:00:06]}  Kb7 {[%clk 0:00:02]} 47. Rc7+ {[%clk 0:00:07]}  Kb6 {[%clk 0:00:03]} 48. Qc5+ {[%clk 0:00:07]}  Ka5 {[%clk 0:00:04]} 49. Rxa7# {[%clk 0:00:07]} 1-0


[Site "https://www.chess.com"]